bitfinex/quotes_ETHUSD_20220101
["timestamp","ask_amount","ask_price","bid_price","bid_amount"]
[1641078809550,0.00170527,3749.7,3749.2,3.91681]
[1641078809850,0.00113685,3749.6,3749.4,0.6668189]
[1641078815798,0.00113685,3749.6,3749.2,0.666846]
[1641078818752,0.00113685,3749.6,3749.1,0.06959923]
[1641078819151,0.00113685,3749.6,3749.2,0.00113685]
[1641078819997,1.00790008,3749.3,3749.2,0.00113685]
[1641078821696,1.00790008,3749.3,3749.1,0.00170527]
[1641078823952,2.31013538,3749.3,3749.1,0.00170527]
[1641078824651,1.00790008,3749.3,3749.1,0.00170527]
[1641078831746,0.66697,3749.4,3749.1,0.00170527]
[1641078832544,0.00113685,3749.6,3749.1,0.00170527]
[1641078832746,1.00392013,3749.2,3749.1,0.00170527]
[1641078833947,4.40392013,3749.2,3749.1,0.00170527]
[1641078834746,1.00392013,3749.2,3749.1,0.00170527]
[1641078835004,4.15392013,3749.2,3749.1,0.00170527]
[1641078835996,11.15392013,3749.2,3749.1,0.00170527]
[1641078836796,12.48809013,3749.2,3749.1,0.00170527]
[1641078839464,8.00392013,3749.2,3749.1,0.00170527]
[1641078841268,7.0,3749.2,3749.1,0.00170527]
[1641078841663,14.0,3749.3,3749.1,0.00170527]
[1641078842594,14.0,3749.3,3749.1,0.66850527]
[1641078842994,18.0,3749.4,3749.1,0.66850527]
[1641078843396,17.0,3749.3,3749.1,0.66850527]
[1641078843593,17.0,3749.3,3749.2,3.8668]
[1641078843794,13.0,3749.6,3749.2,3.8668]
[1641078844194,13.00113685,3749.6,3749.3,0.66681]
[1641078844593,16.0,3749.5,3749.3,0.66681]
[1641078845594,16.0,3749.5,3749.4,8.6504139]
[1641078845793,0.00113685,3749.6,3749.4,8.6504139]
[1641078847852,0.00113685,3749.6,3749.4,10.71491826]
[1641078848458,0.00113685,3749.6,3749.5,7.9]
[1641078849054,0.00113685,3749.6,3749.5,9.96614957]
[1641078849457,0.00113685,3749.6,3749.5,7.9]
[1641078853856,0.00113685,3749.6,3749.5,9.97123824]
[1641078854254,0.00113685,3749.6,3749.5,7.9]
[1641078856055,0.00113685,3749.6,3749.5,10.56727116]
[1641078856254,0.00113685,3749.6,3749.5,10.26727116]
[1641078856456,0.00113685,3749.6,3749.5,7.9]
[1641078864762,0.00113685,3749.6,3749.5,10.5658914]
[1641078865013,0.06915156,3750.3,3749.6,9.3]
[1641078865208,0.06915156,3750.3,3750.0,0.6665868]
[1641078865407,0.06915156,3750.3,3750.2,6.32612539]
[1641078865808,0.07313052,3750.3,3750.2,6.32612539]
[1641078867213,0.00397896,3750.3,3750.2,6.32612539]
[1641078867715,0.00397896,3750.3,3750.2,6.99270539]
[1641078871363,0.00397896,3750.3,3750.2,9.69270539]
[1641078879663,25.00397896,3750.3,3750.2,9.69270539]
[1641078881007,25.00397896,3750.3,3750.2,9.02612539]
[1641078882111,30.00397896,3750.3,3750.2,4.02612539]
[1641078882315,17.00397896,3750.3,3750.2,2.7]
[1641078882712,0.00397896,3750.3,3750.2,2.7]
[1641078883309,6.10397896,3750.3,3750.2,2.7]
[1641078883970,39.10397896,3750.3,3750.2,2.7]
[1641078885569,72.32691175,3750.3,3750.2,2.7]
[1641078885969,66.22691175,3750.3,3750.2,2.7]
[1641078895720,66.22293279,3750.3,3750.2,2.7]
[1641078896824,66.22293279,3750.3,3749.7,0.25]
[1641078896825,7.8,3750.1,3749.7,0.25]
[1641078897024,7.8,3750.1,3748.2,6.85776397]
[1641078897025,0.31915017,3749.7,3748.2,6.85776397]
[1641078897227,0.31915017,3749.7,3748.2,3.58866397]
[1641078897228,2.34017918,3749.6,3748.2,3.58866397]
[1641078897428,2.72317918,3749.6,3748.3,0.00738951]
[1641078897627,4.32317918,3749.6,3748.3,0.00738951]
[1641078897830,4.32317918,3749.6,3748.2,0.00795793]
[1641078898026,1.20968493,3748.6,3748.2,0.00795793]
[1641078898426,0.66717,3748.4,3748.2,0.00795793]
[1641078899257,33.06442302,3748.3,3748.2,0.00795793]
[1641078899658,0.383,3749.2,3747.7,0.01080005]
[1641078899854,0.0581,3749.1,3747.7,0.01080005]
[1641078900558,0.0581,3749.1,3748.3,0.66696]
[1641078900760,1.25236346,3749.1,3748.3,0.66696]
[1641078900954,32.0,3749.0,3748.4,0.00682109]
[1641078901358,32.0,3749.0,3748.2,0.66692]
[1641078901555,30.0,3749.3,3748.6,0.6668903]
[1641078901957,30.0,3749.5,3748.7,0.00511582]
[1641078902396,29.0,3749.4,3748.7,0.00511582]
[1641078902603,29.0,3749.4,3748.9,0.6668333]
[1641078902800,29.0,3749.4,3748.9,1.3336733]
[1641078902999,29.0,3749.4,3749.0,0.00341054]
[1641078903201,0.31915017,3749.7,3749.0,0.00341054]
[1641078903202,31.0,3749.3,3749.0,0.00341054]
[1641078903598,32.0,3749.6,3749.0,0.00341054]
[1641078903802,30.0,3749.2,3749.0,0.00341054]
[1641078904000,34.17186276,3749.5,3749.0,0.67023054]
[1641078904200,1.17186276,3749.5,3749.0,0.67023054]
[1641078904401,35.0,3749.4,3749.1,0.00284212]
[1641078906762,30.0,3749.6,3749.1,0.00284212]
[1641078906962,30.0,3749.3,3749.1,0.00284212]
[1641078907263,27.0,3749.5,3749.1,0.00284212]
[1641078907561,28.10107335,3749.5,3749.1,0.00284212]
[1641078907764,1.10107335,3749.5,3749.1,0.66965212]
[1641078907961,32.0,3749.4,3749.1,0.66965212]
[1641078908162,32.0,3749.4,3749.2,0.0022737]
[1641078909365,32.0,3749.4,3749.3,0.25350886]
[1641078909768,32.0,3749.4,3749.3,0.25521413]
[1641078911819,32.0,3749.4,3749.3,2.95521413]
[1641078912820,28.0,3749.6,3749.3,2.95521413]
[1641078913021,31.0,3749.4,3749.3,2.95521413]
[1641078913320,0.31915017,3749.7,3749.3,2.95521413]
[1641078913321,27.0,3749.5,3749.3,2.95350886]
[1641078913524,32.0,3749.6,3749.3,3.62030886]
[1641078913764,0.31915017,3749.7,3749.4,0.00113685]
[1641078914162,29.0,3749.6,3749.4,0.00113685]
[1641078914368,0.31915017,3749.7,3749.4,0.00113685]
[1641078914564,32.0,3749.5,3749.4,0.00113685]
[1641078914764,0.31915017,3749.7,3749.4,0.00113685]
[1641078914765,31.0,3749.6,3749.4,0.00113685]
[1641078914965,31.0,3749.5,3749.4,0.00113685]
[1641078915162,28.31915017,3749.7,3749.4,0.00113685]
[1641078915364,28.31915017,3749.7,3749.4,0.66790585]
[1641078915766,25.0,3749.6,3749.4,0.66790585]
[1641078916168,25.0,3749.6,3749.4,0.00113685]
[1641078919706,25.0,3749.6,3749.5,0.12675443]
[1641078919907,25.0,3749.6,3749.5,0.25350886]
[1641078921157,15.0,3749.6,3749.5,0.63650886]
[1641078921361,0.31915017,3749.7,3749.5,0.63650886]
[1641078921362,0.31915017,3749.7,3749.5,9.93650886]
[1641078921556,0.06915017,3749.9,3749.5,9.93650886]
[1641078921557,0.06915017,3749.9,3749.6,10.3125151]
[1641078921757,0.06915017,3749.9,3749.7,1.04951]
[1641078921758,0.13882783,3749.9,3749.7,1.04951]
[1641078921959,0.13882783,3749.9,3749.7,1.34951]
[1641078921960,0.00113684,3749.8,3749.7,1.34951]
[1641078922959,0.00113684,3749.8,3749.7,11.3160255]
[1641078923158,0.00113684,3749.8,3749.7,12.6160255]
[1641078924359,0.00113684,3749.8,3749.7,13.01291454]
[1641078924905,0.00113684,3749.8,3749.7,13.13966897]
[1641078925107,0.00033684,3749.8,3749.7,13.2664234]
[1641078926108,0.00033684,3749.8,3749.7,28.8864234]
[1641078926709,0.06915017,3749.9,3749.7,32.50971647]
[1641078926908,0.06915017,3749.9,3749.8,11.83232515]
[1641078927108,0.06915017,3749.9,3749.8,13.21532515]
[1641078927308,2.32784332,3751.8,3749.9,0.06915017]
[1641078927511,2.32784332,3751.8,3750.8,0.66638]
[1641078927708,1.32005734,3751.9,3750.8,0.66638]
[1641078927709,0.00795793,3751.2,3750.9,0.383]
[1641078928108,8.32005734,3751.9,3750.9,0.383]
[1641078928109,0.00738951,3751.1,3750.9,0.383]
[1641078928310,0.00738951,3751.1,3751.0,10.58491675]
[1641078928509,7.0,3752.1,3751.4,0.66628]
[1641078928769,7.0,3752.1,3751.6,0.66628]
[1641078928970,0.0119369,3751.9,3751.6,0.66628]
[1641078929173,0.0119369,3751.9,3751.6,0.96628]
[1641078929370,0.01136847,3751.8,3751.6,0.96628]
[1641078929573,0.01136847,3751.8,3751.7,9.55633551]
[1641078929770,6.0,3752.0,3751.7,7.5]
[1641078929971,6.0,3752.0,3751.7,7.8]
[1641078930170,6.01250532,3752.0,3751.8,0.12675443]
[1641078930369,0.01250532,3752.0,3751.8,0.25350886]
[1641078930570,7.01250532,3752.0,3751.8,0.25350886]
[1641078931173,0.01250532,3752.0,3751.8,0.25350886]
[1641078932173,0.01250532,3752.0,3751.8,2.95350886]
[1641078932800,0.01250532,3752.0,3751.8,5.01631994]
[1641078933001,0.01250532,3752.0,3751.8,3.25350886]
[1641078933403,0.01250532,3752.0,3751.8,3.55350886]
[1641078934602,5.96250532,3752.4,3751.9,5.55]
[1641078934803,1.32005734,3752.8,3751.9,5.55]
[1641078934804,12.0,3752.3,3751.9,5.55]
[1641078935002,12.00170527,3752.3,3751.9,5.55]
[1641078935205,0.00170527,3752.3,3751.9,5.55]
[1641078935403,11.0,3752.2,3752.0,0.9662807]
[1641078935704,0.00170527,3752.3,3752.2,0.12675443]
[1641078935906,1.34106787,3752.3,3752.2,0.12675443]
[1641078936761,6.24106787,3752.3,3752.2,0.12675443]
[1641078937363,16.24106787,3752.3,3752.2,0.12675443]
[1641078938764,20.24144435,3752.3,3752.2,0.12675443]
[1641078939368,21.24144435,3752.3,3752.2,0.12675443]
[1641078940819,17.24106787,3752.3,3752.2,0.25350886]
[1641078941218,17.62406787,3752.3,3752.2,0.25350886]
[1641078944359,9.96658,3752.1,3750.6,0.06967308]
[1641078944561,0.01253893,3751.3,3750.6,0.06967308]
[1641078944764,0.383,3751.2,3750.7,0.00738951]
[1641078945060,1.69218308,3751.1,3750.7,0.00738951]
[1641078945259,2.07518308,3751.1,3750.7,0.00738951]
[1641078945458,15.13185602,3751.0,3750.7,0.00738951]
[1641078945661,0.66682,3750.5,3750.0,0.01136847]
[1641078946664,0.69630205,3750.4,3750.0,0.01136847]
[1641078946863,11.69630205,3750.4,3750.0,0.01136847]
[1641078947061,0.66684,3750.2,3750.0,0.01136847]
[1641078950106,0.69630205,3750.4,3750.0,0.01136847]
[1641078950508,0.69630205,3750.4,3750.0,1.94468327]
[1641078950909,0.69630205,3750.4,3750.1,0.01080005]
[1641078951866,0.69630205,3750.4,3750.1,0.67751745]
[1641078952365,0.69630205,3750.4,3750.2,0.01023162]
[1641078952568,8.06376376,3751.1,3750.2,0.01023162]
[1641078952765,7.0,3751.0,3750.4,1.3331786]
[1641078952967,7.0,3751.0,3750.4,1.6331786]
[1641078953167,7.0,3751.0,3750.5,0.00852635]
[1641078953567,7.0,3751.0,3750.6,0.6665893]
[1641078955516,7.0,3751.0,3750.6,2.07545212]
[1641078955717,7.0,3751.0,3750.8,1.3330664]
[1641078955918,0.0594,3751.8,3750.8,1.9995851]
[1641078956117,3.5983,3752.1,3750.8,1.9995851]
[1641078956118,1.7789,3752.1,3750.9,0.30625266]
[1641078956317,1.3959,3752.1,3750.9,0.30625266]
[1641078956517,8.0,3751.9,3751.0,0.00568424]
[1641078956719,6.0,3752.0,3751.0,0.00568424]
[1641078957117,1.17924144,3751.7,3750.9,0.00625266]
[1641078957317,1.17924144,3751.7,3751.0,0.00568424]
[1641078957519,1.17924144,3751.7,3750.9,0.00625266]
[1641078957721,1.17924144,3751.7,3751.4,0.6664789]
[1641078958120,1.17924144,3751.7,3751.5,0.00284212]
[1641078961062,1.17924144,3751.7,3751.2,0.00454739]
[1641078963703,1.17924144,3751.7,3751.3,0.6664981]
[1641078964106,1.17924144,3751.7,3751.4,0.00341054]
[1641078964506,0.69604484,3751.6,3751.4,0.00341054]
[1641078968362,0.69604484,3751.6,3751.4,0.30341054]
[1641078968564,0.69604484,3751.6,3751.4,2.37539855]
[1641078968763,0.69604484,3751.6,3751.5,7.56925412]
[1641078968964,0.69604484,3751.6,3751.5,7.86925412]
[1641078969164,3.30795068,3751.8,3751.5,7.86925412]
[1641078969362,2.0,3751.8,3751.5,7.86925412]
[1641078969562,2.0,3751.8,3751.6,0.66854369]
[1641078969762,2.0,3751.8,3751.6,0.96854369]
[1641078970014,2.0,3751.8,3751.7,7.75170527]
[1641078970911,3.0,3752.1,3752.0,5.36821667]
[1641078971308,3.0,3752.1,3752.0,13.04904374]
[1641078971514,6.15,3752.4,3752.0,13.34904374]
[1641078971711,6.15,3752.4,3752.0,8.60641664]
[1641078971912,0.06967371,3752.1,3752.0,10.94904374]
[1641078972212,6.15,3752.4,3752.2,0.66616]
[1641078972411,6.15,3752.4,3752.3,6.70397924]
[1641078972811,6.15113684,3752.4,3752.3,6.70397924]
[1641078973215,6.15113684,3752.4,3752.3,7.30397924]
[1641078973411,6.15113684,3752.4,3752.3,2.32012924]
[1641078973664,8.85113684,3752.4,3752.1,1.9984919]
[1641078973865,8.85113684,3752.4,3752.0,0.00113685]
[1641078974265,6.0,3752.3,3751.9,0.00170527]
[1641078975264,6.0,3752.3,3752.0,0.6663776]
[1641078975466,6.15113684,3752.4,3752.0,0.6663776]
[1641078975667,6.15113684,3752.4,3752.0,0.9663776]
[1641078976872,0.69586018,3752.3,3752.0,0.9663776]
[1641078977918,0.69586018,3752.3,3751.9,0.00170527]
[1641078977919,2.18267623,3752.2,3751.9,0.00170527]
[1641078978119,2.56567623,3752.2,3751.9,0.00170527]
[1641078978319,1.0,3752.1,3751.6,0.00341054]
[1641078978523,15.62,3751.9,3751.1,0.00625266]
[1641078978719,3.16829766,3751.8,3751.1,0.00625266]
[1641078978921,1.27080428,3751.4,3751.1,0.00625266]
[1641078979120,2.7762035,3751.3,3751.0,0.00682109]
[1641078979519,10.0,3751.2,3751.0,0.00682109]
[1641078979720,2.3273043,3751.1,3751.0,0.00682109]
[1641078979920,10.383,3751.2,3751.0,0.00682109]
[1641078980321,0.383,3751.2,3751.0,0.00682109]
[1641078980521,11.30795068,3751.4,3751.0,0.00682109]
[1641078980923,1.30795068,3751.4,3751.2,1.39563932]
[1641078981171,1.30795068,3751.7,3751.2,1.39563932]
[1641078981362,1.30795068,3751.7,3751.3,0.00511582]
[1641078982561,1.38117731,3752.0,3751.3,0.00511582]
[1641078982761,3.53399952,3752.1,3751.4,0.666472]
[1641078982959,1.30795068,3752.1,3751.4,0.666472]
[1641078983159,11.0,3752.0,3751.5,0.00397897]
[1641078984763,11.0,3752.0,3751.5,0.67042387]
[1641078985211,11.0,3752.0,3751.6,0.00341054]
[1641078986011,12.30795068,3752.0,3751.6,0.00341054]
[1641078986812,1.30795068,3752.0,3751.6,0.00341054]
[1641078987214,12.30795068,3752.1,3751.6,0.00341054]
[1641078987813,4.0,3752.0,3751.6,0.00341054]
[1641078988855,5.30795068,3752.0,3751.6,0.00341054]
[1641078989555,1.30795068,3752.0,3751.6,0.00341054]
[1641078989755,8.0,3751.9,3751.6,0.00341054]
[1641078989956,10.24582455,3751.9,3751.6,0.00341054]
[1641078990156,8.0,3751.9,3751.6,0.00341054]
[1641078990361,10.24964311,3751.9,3751.4,0.00454739]
[1641078990559,9.0,3752.0,3751.2,0.00568424]
[1641078990759,5.0,3751.8,3751.2,0.00568424]
[1641078990961,6.30795068,3751.8,3751.2,0.00568424]
[1641078991260,1.30795068,3751.8,3751.2,0.00568424]
[1641078991959,1.30795068,3751.8,3751.3,0.6664933]
[1641078992415,1.30795068,3751.9,3751.4,0.00454739]
[1641078993413,1.97448068,3752.0,3751.4,0.00454739]
[1641078993615,2.97448068,3752.0,3751.4,0.00454739]
[1641078993819,2.95407369,3752.0,3751.4,0.00454739]
[1641078994615,1.64612301,3752.0,3751.4,0.00454739]
[1641078995217,2.95407369,3752.0,3751.4,0.00454739]
[1641078996262,2.17738217,3751.9,3751.4,0.00454739]
[1641078996461,6.0,3751.8,3751.4,0.00454739]
[1641078997065,5.0,3751.9,3751.4,0.00454739]
[1641078997663,6.30795068,3751.9,3751.4,0.00454739]
[1641078998266,1.30795068,3751.9,3751.4,0.00454739]
[1641078998866,1.95407369,3752.0,3751.4,0.00454739]
[1641078999067,1.30795068,3752.0,3751.4,0.00454739]
[1641079000511,1.30795068,3752.0,3751.5,0.6664763]
[1641079000808,1.30795068,3752.0,3751.6,0.00341054]
[1641079001609,2.08305932,3752.2,3751.6,0.00341054]
[1641079001610,3.39101,3752.2,3751.6,0.00341054]
[1641079001808,1.97444068,3752.2,3751.6,0.00341054]
[1641079002010,1.30795068,3752.2,3751.6,0.00341054]
[1641079002914,1.30795068,3752.0,3751.6,0.00341054]
[1641079003115,1.30795068,3752.0,3751.8,1.13128709]
[1641079003312,4.54348,3752.8,3751.9,4.1]
[1641079003313,1.30795068,3752.1,3751.9,4.1]
[1641079003513,1.30795068,3752.1,3752.0,10.62304444]
[1641079003777,1.30795068,3752.1,3752.0,0.00113685]
[1641079003974,0.00227369,3752.6,3752.0,0.00113685]
[1641079004274,0.00227369,3752.6,3751.9,0.00170527]
[1641079004477,0.00170527,3752.5,3752.1,1.3324938]
[1641079004874,0.00113684,3752.4,3752.1,1.6324938]
[1641079005273,0.00284211,3752.7,3752.3,0.6662586]
[1641079005676,0.00397896,3752.9,3752.3,0.6662586]
[1641079006076,0.00341054,3752.8,3752.3,0.6662586]
[1641079006475,0.00284211,3752.7,3752.1,1.3324938]
[1641079006879,0.00341054,3752.8,3752.1,1.3324938]
[1641079007278,0.00284211,3752.7,3752.1,1.3324938]
[1641079007509,0.00284211,3752.7,3752.1,1.6324938]
[1641079007711,0.6664,3752.7,3752.1,0.3]
[1641079007912,0.6664,3752.7,3751.9,0.00170527]
[1641079007913,0.6664,3752.7,3751.9,0.30170527]
[1641079008112,1.12468324,3752.5,3751.9,0.30170527]
[1641079008313,1.12468324,3752.5,3752.0,0.00113685]
[1641079008514,0.00113684,3752.4,3752.0,0.00113685]
[1641079009316,0.00113684,3752.4,3752.0,0.66752465]
[1641079019274,6.00113684,3752.4,3752.0,0.66752465]
[1641079020176,6.00113684,3752.4,3752.0,0.00113685]
[1641079020377,6.66645,3752.3,3752.0,0.00113685]
[1641079020578,11.66645,3752.3,3751.9,0.00170527]
[1641079020977,4.0,3752.2,3751.9,0.00170527]
[1641079021278,0.00113684,3752.4,3751.6,0.00341054]
[1641079021475,0.00113684,3752.4,3751.6,2.07003301]
[1641079021675,0.00113684,3752.4,3751.6,0.00341054]
[1641079021876,0.00113684,3752.4,3751.7,0.00284212]
[1641079022075,0.00113684,3752.4,3751.6,0.00341054]
[1641079022519,0.00113684,3752.4,3751.6,0.66982054]
[1641079022720,0.00113684,3752.4,3752.0,0.6664053]
[1641079024723,1.30795068,3752.3,3752.0,0.6664053]
[1641079025925,1.30795068,3752.1,3752.0,0.6664053]
[1641079026361,1.30795068,3752.2,3752.0,0.66754215]
[1641079026860,1.30795068,3752.1,3752.0,0.66754215]
[1641079027459,1.30795068,3752.2,3752.0,0.66754215]
[1641079028862,1.30795068,3752.1,3752.0,0.66754215]
[1641079029263,2.39576989,3752.2,3752.0,0.66754215]
[1641079029664,3.70795068,3752.1,3752.0,0.00113685]
[1641079030121,3.70795068,3752.1,3751.9,0.00170527]
[1641079030920,4.37444068,3752.1,3751.9,0.00170527]
[1641079031423,4.37444068,3752.1,3751.7,0.6664601]
[1641079031821,4.37444068,3752.1,3751.8,0.0022737]
[1641079033225,3.06649,3752.1,3751.8,0.0022737]
[1641079033865,1.30795068,3752.0,3751.6,0.00341054]
[1641079034262,1.30795068,3751.9,3751.6,0.00341054]
[1641079034463,1.97446068,3751.9,3751.6,0.00341054]
[1641079037068,0.66651,3751.9,3751.6,0.00341054]
[1641079039922,1.30795068,3752.0,3751.6,0.00341054]
[1641079040123,1.30795068,3752.0,3751.7,0.6664626]
[1641079040524,1.30795068,3752.0,3751.8,0.0022737]
[1641079042575,1.30795068,3752.2,3751.9,0.6663386]
[1641079042975,1.30795068,3752.2,3752.0,0.66747685]
[1641079043177,1.30795068,3752.3,3752.0,0.66747685]
[1641079043783,1.30795068,3752.3,3752.0,1.33381475]
[1641079043975,1.30795068,3752.4,3752.0,1.33381475]
[1641079044177,1.30795068,3752.4,3752.2,0.66631]
[1641079044579,2.00380668,3752.5,3752.2,0.66631]
[1641079045237,0.695856,3752.5,3752.2,0.66631]
[1641079045636,0.695856,3752.5,3752.2,1.3326143]
[1641079045833,0.695856,3752.5,3752.3,1.3326055]
[1641079046639,0.695856,3752.5,3752.4,1.35340462]
[1641079047037,0.69756127,3752.5,3752.4,1.35340462]
[1641079049070,0.69756127,3752.5,3752.4,3.40380166]
[1641079049269,0.00170527,3752.5,3752.4,3.40380166]
[1641079049466,0.00170527,3752.5,3752.4,7.30380166]
[1641079049665,0.00170527,3752.5,3752.4,7.60380166]
[1641079049866,1.30795068,3752.7,3752.5,9.1]
[1641079050067,3.7717,3754.2,3752.4,9.61921166]
[1641079050068,1.74393424,3753.3,3753.0,0.66602]
[1641079050272,1.74393424,3753.3,3753.1,2.38689302]
[1641079050469,1.74393424,3753.3,3753.2,5.71607]
[1641079050666,3.98401028,3753.5,3753.2,5.71607]
[1641079050869,0.00454738,3753.5,3753.3,1.4152182]
[1641079051172,0.06905411,3754.2,3753.3,0.3]
[1641079051368,0.06905411,3754.2,3753.1,1.63202]
[1641079051572,0.00284212,3753.8,3753.1,1.63202]
[1641079051767,0.00284212,3753.8,3753.1,0.3]
[1641079051967,0.0022737,3753.7,3752.7,1.18601125]
[1641079052168,1.09970907,3753.5,3752.8,1.9986476]
[1641079052415,0.66797527,3753.6,3752.8,1.63524971]
[1641079052615,0.00170527,3753.6,3752.9,0.00227369]
[1641079052815,0.00113685,3753.5,3752.9,0.00227369]
[1641079053615,0.00113685,3753.5,3753.1,0.6662111]
[1641079053817,0.00113685,3753.5,3753.1,0.9662111]
[1641079054814,0.00113685,3753.5,3753.1,0.6662111]
[1641079057762,1.38038602,3753.4,3752.9,0.00227369]
[1641079057964,2.27464046,3753.3,3752.9,0.00227369]
[1641079058161,3.27464046,3753.3,3752.8,0.00284211]
[1641079058462,9.383,3753.2,3752.8,0.00284211]
[1641079058661,2.55102729,3753.1,3752.8,0.00284211]
[1641079058862,12.55102729,3753.1,3752.8,0.00284211]
[1641079059161,4.0,3753.0,3752.8,0.00284211]
[1641079059366,3.0,3753.0,3752.8,0.00284211]
[1641079059760,0.383,3753.2,3752.8,0.00284211]
[1641079060027,0.00113685,3753.5,3752.9,0.66627]
[1641079060424,0.00113685,3753.5,3753.0,0.00170527]
[1641079061425,0.00113685,3753.5,3753.1,0.66621]
[1641079061726,0.00113685,3753.5,3753.1,1.332427]
[1641079062123,0.00113685,3753.5,3753.3,1.12845198]
[1641079062522,0.00113685,3753.5,3753.3,1.79457198]
[1641079062724,0.00113685,3753.5,3753.4,0.3]
[1641079062922,0.00113685,3753.5,3753.3,2.46073278]
[1641079063523,0.00113685,3753.5,3753.3,3.12686278]
[1641079065168,0.00113685,3753.5,3753.4,9.90355228]
[1641079065465,6.15,3754.0,3753.5,5.1]
[1641079065667,6.15,3754.0,3753.7,1.3319]
[1641079065864,0.00227369,3753.9,3753.7,1.6319]
[1641079066264,0.00170527,3753.8,3753.7,1.6319]
[1641079067265,6.20978127,3754.0,3753.8,5.85]
[1641079067516,6.20978127,3754.0,3753.9,2.42265127]
[1641079067913,0.00113685,3754.2,3754.0,9.15]
[1641079068116,0.00113685,3754.2,3754.1,2.95]
[1641079068312,0.00113685,3754.2,3754.1,6.96589]
[1641079068511,0.0022737,3754.2,3754.1,2.95]
[1641079068711,0.0022737,3754.2,3754.0,1.3318224]
[1641079068911,0.0022737,3754.2,3753.3,6.21352906]
[1641079069112,6.15,3754.1,3753.3,4.1365]
[1641079069313,6.15,3754.1,3753.6,0.0022737]
[1641079069715,6.15,3754.1,3753.4,0.00341054]
[1641079070112,6.15,3754.1,3753.9,1.18258312]
[1641079070314,6.15,3754.1,3753.9,3.61646107]
[1641079070516,6.15,3754.1,3753.9,1.48258312]
[1641079070914,6.15,3754.1,3753.9,1.18258312]
[1641079071169,0.00113685,3754.2,3753.9,1.18258312]
[1641079073869,0.00113685,3754.2,3754.0,2.0949234]
[1641079074071,0.00113685,3754.2,3753.9,1.48258312]
[1641079075714,0.00113685,3754.2,3754.0,0.6659724]
[1641079076014,0.00113685,3754.2,3754.1,0.3]
[1641079077016,0.00113685,3754.2,3753.4,0.00341054]
[1641079077422,0.00113685,3754.2,3753.6,0.0022737]
[1641079077618,0.00113685,3754.2,3753.4,0.0022737]
[1641079077820,0.00113685,3754.2,3753.7,0.00170527]
[1641079078018,0.00113685,3754.2,3752.7,1.11695714]
[1641079078019,0.66627,3753.7,3753.3,0.00397897]
[1641079078418,0.66626,3753.5,3753.0,1.00725103]
[1641079078661,0.66626,3753.5,3753.1,0.00511581]
[1641079078863,0.6956841,3753.4,3753.1,0.00511581]
[1641079080466,0.66628,3753.3,3753.1,0.00511581]
[1641079080666,0.66628,3753.3,3752.8,0.00682108]
[1641079080965,0.6956841,3753.4,3752.8,2.11807389]
[1641079081466,0.6956841,3753.4,3752.9,0.00625266]
[1641079081667,0.6956841,3753.4,3753.0,1.99835]
[1641079081869,0.6956841,3753.4,3753.1,2.11914383]
[1641079082070,0.6956841,3753.4,3753.1,2.43478019]
[1641079082266,0.6956841,3753.4,3753.2,0.00454739]
[1641079083314,0.6956841,3753.4,3753.2,1.21129981]
[1641079083512,0.6956841,3753.4,3753.3,3.1]
[1641079083713,0.6956841,3753.4,3753.3,5.21465623]
[1641079083914,0.6956841,3753.4,3753.3,3.40397897]
[1641079084112,0.6956841,3753.4,3753.3,0.30397897]
[1641079088972,0.6956841,3753.4,3753.3,0.00397897]
[1641079089473,0.6956841,3753.4,3753.1,0.00511581]
[1641079089672,0.6956841,3753.4,3752.8,0.00682108]
[1641079091124,2.08278298,3753.1,3752.8,0.00682108]
[1641079091323,1.41648298,3753.1,3752.8,0.00682108]
[1641079093228,0.6956841,3753.4,3752.8,0.00682108]
[1641079094672,0.6956841,3753.4,3752.8,0.67301588]
[1641079095071,0.6956841,3753.4,3753.0,1.35648452]
[1641079095476,0.6956841,3753.4,3753.1,0.00511581]
[1641079096174,0.6956841,3753.4,3753.1,0.30511581]
[1641079096573,0.6956841,3753.4,3753.2,0.00454739]
[1641079096974,0.6956841,3753.4,3753.1,0.67122581]
[1641079097175,0.6956841,3753.4,3753.2,0.00454739]
[1641079098217,0.6956841,3753.4,3753.1,0.00511581]
[1641079098819,0.6956841,3753.4,3753.1,0.67127461]
[1641079099218,0.6956841,3753.4,3753.2,0.00454739]
[1641079105416,0.6956841,3753.4,3753.2,0.30454739]
[1641079105619,0.6956841,3753.4,3753.2,0.60454739]
[1641079105819,0.6956841,3753.4,3753.3,2.80397897]
[1641079106014,0.6956841,3753.4,3753.3,0.00397897]
[1641079106416,3.00247145,3753.4,3753.3,0.00397897]
[1641079106616,0.6956841,3753.4,3753.3,0.00397897]
[1641079106817,0.6956841,3753.4,3753.0,0.00568424]
[1641079107017,3.64658704,3753.4,3753.0,0.00568424]
[1641079107218,1.06473682,3753.3,3753.0,0.00568424]
[1641079107420,1.06473682,3753.3,3752.9,0.00625266]
[1641079107618,2.24393139,3753.2,3752.8,0.00682108]
[1641079108115,2.91022139,3753.2,3752.8,0.00682108]
[1641079108871,1.31071213,3753.1,3752.8,0.00682108]
[1641079109567,0.69576599,3753.0,3752.8,0.00682108]
[1641079110870,1.36207599,3753.0,3752.8,0.00682108]
[1641079112424,0.69576599,3753.0,3752.8,0.00682108]
[1641079116772,0.69576599,3753.0,3752.8,0.30682108]
[1641079117169,3.74183079,3753.6,3752.9,5.45625266]
[1641079117370,3.74183079,3753.6,3753.1,0.66611]
[1641079117569,3.74183079,3753.6,3753.0,1.33790424]
[1641079117771,9.31071213,3753.7,3753.2,0.00454739]
[1641079117772,8.0,3753.7,3753.2,0.00454739]
[1641079117971,8.0,3753.7,3753.1,0.30511581]
[1641079118176,8.0,3753.7,3753.1,1.63733361]
[1641079118370,8.0,3753.7,3753.2,0.00454739]
[1641079118970,8.66619,3753.7,3753.2,0.00454739]
[1641079119569,9.0,3753.6,3753.2,0.00454739]
[1641079121227,9.0,3753.6,3753.3,0.6661464]
[1641079121428,9.0,3753.6,3753.2,0.00454739]
[1641079121629,9.0,3753.7,3753.4,0.00341054]
[1641079121831,9.0,3753.7,3753.2,0.03987268]
[1641079122027,9.0,3753.7,3753.3,0.00397897]
[1641079122227,8.0,3753.7,3753.3,0.00397897]
[1641079122428,15.0,3753.6,3753.3,0.00397897]
[1641079122628,2.21559696,3753.5,3753.3,0.00397897]
[1641079122827,15.6662,3753.6,3753.3,0.00397897]
[1641079123027,0.6662,3753.6,3753.3,0.00397897]
[1641079123226,2.89185173,3753.6,3753.3,0.00397897]
[1641079123428,2.89943988,3753.6,3753.3,0.00397897]